[Event "*** Titled Tuesday Blitz"]
[Site "Chess.com"]
[Date "2021.04.06"]
[Round "2"]
[White "superchess02"]
[Black "Yurovskykh_Oleksandr"]
[Result "1-0"]
[WhiteElo "2810"]
[BlackElo "2529"]
[TimeControl "180+1"]
[EndTime "10:16:11 PDT"]
[Termination "superchess02 won by resignation"]

1. c4 {[%clk 0:03:00.9]} 1... c6 {[%clk 0:02:57.1]} 2. Nf3 {[%clk 0:03:01]} 2...
d5 {[%clk 0:02:53.5]} 3. g3 {[%clk 0:03:01.3]} 3... Bg4 {[%clk 0:02:51.7]} 4.
Bg2 {[%clk 0:03:01.4]} 4... e6 {[%clk 0:02:51.2]} 5. O-O {[%clk 0:03:01.3]} 5...
Nf6 {[%clk 0:02:47.4]} 6. d4 {[%clk 0:02:56.6]} 6... Nbd7 {[%clk 0:02:46.9]} 7.
b3 {[%clk 0:02:56.4]} 7... Bd6 {[%clk 0:02:40.7]} 8. Bb2 {[%clk 0:02:56.5]} 8...
O-O {[%clk 0:02:40.4]} 9. Ne5 {[%clk 0:02:55.1]} 9... Bh5 {[%clk 0:02:38.6]} 10.
h3 {[%clk 0:02:49.9]} 10... a5 {[%clk 0:02:33.4]} 11. f4 {[%clk 0:02:47.3]}
11... Be7 {[%clk 0:02:23.1]} 12. Nc3 {[%clk 0:02:42.3]} 12... Nxe5 {[%clk
0:02:19.1]} 13. dxe5 {[%clk 0:02:25]} 13... Nd7 {[%clk 0:02:11.1]} 14. Kh2
{[%clk 0:02:03.9]} 14... f6 {[%clk 0:02:06.4]} 15. cxd5 {[%clk 0:01:52]} 15...
exd5 {[%clk 0:02:03.5]} 16. Nxd5 {[%clk 0:01:51.9]} 16... cxd5 {[%clk
0:02:01.3]} 17. Qxd5+ {[%clk 0:01:52.8]} 17... Kh8 {[%clk 0:02:01.3]} 18. e6
{[%clk 0:01:53]} 18... Bxe2 {[%clk 0:01:19.7]} 19. Rfe1 {[%clk 0:01:44.7]} 19...
Nb6 {[%clk 0:01:07.8]} 20. Qxd8 {[%clk 0:01:41.8]} 20... Raxd8 {[%clk
0:01:08.7]} 21. Rxe2 {[%clk 0:01:41.7]} 21... Nd5 {[%clk 0:01:03.9]} 22. Rd1
{[%clk 0:01:30.2]} 22... Nc7 {[%clk 0:00:56.6]} 23. Rd7 {[%clk 0:01:24.4]} 1-0

[Event "*** Titled Tuesday Blitz"]
[Site "Chess.com"]
[Date "2021.04.06"]
[Round "2"]
[White "EvgenyT"]
[Black "Niktlt"]
[Result "1/2-1/2"]
[WhiteElo "2928"]
[BlackElo "2576"]
[TimeControl "180+1"]
[EndTime "10:16:14 PDT"]
[Termination "Game drawn by agreement"]

1. c4 {[%clk 0:03:00.7]} 1... Nf6 {[%clk 0:02:59.7]} 2. Nc3 {[%clk 0:02:59.2]}
2... g6 {[%clk 0:02:59.9]} 3. g3 {[%clk 0:02:55.7]} 3... Bg7 {[%clk 0:02:59.7]}
4. Bg2 {[%clk 0:02:56.1]} 4... O-O {[%clk 0:03:00.6]} 5. Nf3 {[%clk 0:02:54.4]}
5... d6 {[%clk 0:03:00.9]} 6. d4 {[%clk 0:02:53.8]} 6... Nc6 {[%clk 0:03:01.1]}
7. O-O {[%clk 0:02:52.9]} 7... Bf5 {[%clk 0:03:01.3]} 8. e3 {[%clk 0:02:51.3]}
8... Ne4 {[%clk 0:03:01]} 9. Ne2 {[%clk 0:02:49.4]} 9... Nf6 {[%clk 0:02:52.5]}
10. b3 {[%clk 0:02:45.8]} 10... e5 {[%clk 0:02:52.4]} 11. Bb2 {[%clk 0:02:40.6]}
11... Re8 {[%clk 0:02:42.5]} 12. Nh4 {[%clk 0:02:08.7]} 12... Bg4 {[%clk
0:02:39.2]} 13. d5 {[%clk 0:02:07.2]} 13... Ne7 {[%clk 0:02:37.3]} 14. h3 {[%clk
0:01:58.2]} 14... Bd7 {[%clk 0:02:36]} 15. Kh2 {[%clk 0:01:43]} 15... g5 {[%clk
0:02:33.5]} 16. Nf3 {[%clk 0:01:42.4]} 16... h6 {[%clk 0:02:33.1]} 17. Nd2
{[%clk 0:01:40.2]} 17... Ng6 {[%clk 0:02:32.6]} 18. Nc3 {[%clk 0:01:38.8]} 18...
a5 {[%clk 0:02:32.1]} 19. Qc2 {[%clk 0:01:31.2]} 19... Rf8 {[%clk 0:02:27.8]}
20. Rae1 {[%clk 0:01:28.1]} 20... g4 {[%clk 0:02:20.6]} 21. h4 {[%clk 0:01:27]}
21... h5 {[%clk 0:02:20.7]} 22. a3 {[%clk 0:01:20]} 22... Ne8 {[%clk 0:02:17.4]}
23. Kg1 {[%clk 0:01:19.6]} 23... f5 {[%clk 0:02:17.2]} 24. c5 {[%clk 0:01:18.9]}
24... dxc5 {[%clk 0:02:10.2]} 25. f4 {[%clk 0:01:11.2]} 25... Nd6 {[%clk
0:02:04.8]} 26. Nc4 {[%clk 0:01:04.9]} 26... e4 {[%clk 0:02:02.3]} 27. Rd1
{[%clk 0:00:51.2]} 27... b6 {[%clk 0:01:59.5]} 28. Rf2 {[%clk 0:00:49]} 28...
Qe7 {[%clk 0:01:58.6]} 29. Bf1 {[%clk 0:00:48.5]} 29... Bf6 {[%clk 0:01:55]} 30.
a4 {[%clk 0:00:43.3]} 30... Bg7 {[%clk 0:01:49.5]} 31. Nxd6 {[%clk 0:00:39.3]}
31... cxd6 {[%clk 0:01:50.4]} 32. Bb5 {[%clk 0:00:39.6]} 1/2-1/2

[Event "*** Titled Tuesday Blitz"]
[Site "Chess.com"]
[Date "2021.04.06"]
[Round "2"]
[White "GM_Crest"]
[Black "Ural_bogatyr"]
[Result "1-0"]
[WhiteElo "2693"]
[BlackElo "2481"]
[TimeControl "180+1"]
[EndTime "10:16:16 PDT"]
[Termination "GM_Crest won by resignation"]

1. d4 {[%clk 0:03:00.9]} 1... Nf6 {[%clk 0:02:59.9]} 2. c4 {[%clk 0:03:00.4]}
2... e5 {[%clk 0:03:00.2]} 3. dxe5 {[%clk 0:03:00]} 3... Ng4 {[%clk 0:03:00.3]}
4. e3 {[%clk 0:03:00.4]} 4... Nxe5 {[%clk 0:02:59.9]} 5. Nh3 {[%clk 0:03:00.9]}
5... d5 {[%clk 0:03:00.1]} 6. Qxd5 {[%clk 0:02:56.5]} 6... Qf6 {[%clk
0:02:59.8]} 7. Nf4 {[%clk 0:02:51.1]} 7... c6 {[%clk 0:02:59.3]} 8. Qd4 {[%clk
0:02:45.5]} 8... Nbd7 {[%clk 0:02:52.8]} 9. Nc3 {[%clk 0:02:43.7]} 9... Bb4
{[%clk 0:02:24.1]} 10. Bd2 {[%clk 0:02:37.1]} 10... O-O {[%clk 0:01:56.9]} 11.
Ne4 {[%clk 0:02:36]} 11... Qe7 {[%clk 0:01:56.2]} 12. Bxb4 {[%clk 0:02:29.9]}
12... Qxb4+ {[%clk 0:01:54.7]} 13. Qc3 {[%clk 0:02:30.3]} 13... Qe7 {[%clk
0:01:54.6]} 14. Be2 {[%clk 0:02:25.8]} 14... Nb6 {[%clk 0:01:47.5]} 15. c5
{[%clk 0:02:21]} 15... Bf5 {[%clk 0:01:36]} 16. Nd6 {[%clk 0:02:19.1]} 16... Bg4
{[%clk 0:01:24.5]} 17. Bxg4 {[%clk 0:01:59.2]} 17... Nxg4 {[%clk 0:01:25.4]} 18.
Rd1 {[%clk 0:01:55.3]} 18... Na4 {[%clk 0:01:16.3]} 19. Qd4 {[%clk 0:01:54.3]}
19... b5 {[%clk 0:01:09.3]} 20. b3 {[%clk 0:01:53.9]} 20... Nxc5 {[%clk
0:01:07.3]} 21. Qxc5 {[%clk 0:01:53.8]} 21... Rad8 {[%clk 0:01:07.9]} 22. O-O
{[%clk 0:01:46.6]} 22... Rd7 {[%clk 0:00:59.4]} 23. Rd4 {[%clk 0:01:45.2]} 23...
Rfd8 {[%clk 0:00:58.6]} 24. Rfd1 {[%clk 0:01:30.8]} 24... Qh4 {[%clk 0:00:56.1]}
25. Nh3 {[%clk 0:01:29.7]} 25... Qh5 {[%clk 0:00:42.1]} 26. Qxh5 {[%clk
0:01:28.6]} 1-0

[Event "*** Titled Tuesday Blitz"]
[Site "Chess.com"]
[Date "2021.04.06"]
[Round "2"]
[White "Nf3c5"]
[Black "MegaManMusic"]
[Result "1-0"]
[WhiteElo "2529"]
[BlackElo "2232"]
[TimeControl "180+1"]
[EndTime "10:16:16 PDT"]
[Termination "Nf3c5 won by resignation"]

1. e4 {[%clk 0:03:00.5]} 1... c5 {[%clk 0:02:59.1]} 2. b3 {[%clk 0:02:59]} 2...
Nc6 {[%clk 0:02:55.7]} 3. Bb2 {[%clk 0:02:58.5]} 3... e6 {[%clk 0:02:55.9]} 4.
Bb5 {[%clk 0:02:53.2]} 4... Nf6 {[%clk 0:02:48.1]} 5. e5 {[%clk 0:02:43.3]} 5...
Nd5 {[%clk 0:02:46.4]} 6. Bxc6 {[%clk 0:02:41.2]} 6... bxc6 {[%clk 0:02:44.1]}
7. Nf3 {[%clk 0:02:36.9]} 7... g6 {[%clk 0:02:41.6]} 8. Nc3 {[%clk 0:02:35.7]}
8... Nxc3 {[%clk 0:02:40.4]} 9. Bxc3 {[%clk 0:02:34.5]} 9... Bg7 {[%clk
0:02:41.3]} 10. Qe2 {[%clk 0:02:34.6]} 10... O-O {[%clk 0:02:41]} 11. O-O {[%clk
0:02:29.8]} 11... d6 {[%clk 0:02:40.2]} 12. exd6 {[%clk 0:02:23.6]} 12... Bxc3
{[%clk 0:02:41.1]} 13. dxc3 {[%clk 0:02:22.9]} 13... Qxd6 {[%clk 0:02:41.1]} 14.
Rfd1 {[%clk 0:02:21]} 14... Qf4 {[%clk 0:02:41.2]} 15. Ne5 {[%clk 0:02:17.7]}
15... a5 {[%clk 0:02:04.6]} 16. a4 {[%clk 0:02:13.7]} 16... Ba6 {[%clk
0:01:57.8]} 17. c4 {[%clk 0:02:11]} 17... Rad8 {[%clk 0:01:51.9]} 18. Nd7 {[%clk
0:01:59.9]} 18... Rfe8 {[%clk 0:01:39]} 19. Nxc5 {[%clk 0:01:58.5]} 19... Bc8
{[%clk 0:01:38.7]} 20. g3 {[%clk 0:01:51.5]} 20... Qf6 {[%clk 0:01:06.4]} 21.
Rxd8 {[%clk 0:01:29.9]} 21... Qxa1+ {[%clk 0:00:59.5]} 22. Rd1 {[%clk
0:01:28.9]} 22... Qc3 {[%clk 0:00:54.9]} 23. Ne4 {[%clk 0:01:25.7]} 23... Qe5
{[%clk 0:00:50.9]} 24. f4 {[%clk 0:01:23.1]} 24... Qc7 {[%clk 0:00:48.8]} 25.
Nf6+ {[%clk 0:01:22.4]} 25... Kf8 {[%clk 0:00:48.9]} 26. Nxe8 {[%clk 0:01:21.2]}
26... Kxe8 {[%clk 0:00:49.8]} 27. Qe5 {[%clk 0:01:19.6]} 1-0

[Event "*** Titled Tuesday Blitz"]
[Site "Chess.com"]
[Date "2021.04.06"]
[Round "2"]
[White "j2806"]
[Black "Legendinunknown"]
[Result "0-1"]
[WhiteElo "2157"]
[BlackElo "2599"]
[TimeControl "180+1"]
[EndTime "10:16:18 PDT"]
[Termination "Legendinunknown won by resignation"]

1. e4 {[%clk 0:03:00.9]} 1... e5 {[%clk 0:02:58]} 2. Nf3 {[%clk 0:03:01.1]} 2...
Nc6 {[%clk 0:02:58.6]} 3. Bb5 {[%clk 0:03:01.4]} 3... a6 {[%clk 0:02:57.1]} 4.
Ba4 {[%clk 0:03:01.6]} 4... Nf6 {[%clk 0:02:56]} 5. d3 {[%clk 0:03:01.6]} 5...
d6 {[%clk 0:02:55.2]} 6. c3 {[%clk 0:03:01.9]} 6... g6 {[%clk 0:02:55.3]} 7. O-O
{[%clk 0:03:00.5]} 7... Bg7 {[%clk 0:02:55.4]} 8. Nbd2 {[%clk 0:03:00.3]} 8...
O-O {[%clk 0:02:55.3]} 9. Re1 {[%clk 0:03:00.9]} 9... Nh5 {[%clk 0:02:55.7]} 10.
Nf1 {[%clk 0:03:00.6]} 10... Bd7 {[%clk 0:02:54.6]} 11. d4 {[%clk 0:02:50.1]}
11... Qe8 {[%clk 0:02:52.7]} 12. d5 {[%clk 0:02:49.1]} 12... Nb8 {[%clk
0:02:52.5]} 13. Bc2 {[%clk 0:02:44.8]} 13... f5 {[%clk 0:02:50.8]} 14. h3 {[%clk
0:02:40.4]} 14... fxe4 {[%clk 0:02:42]} 15. Bxe4 {[%clk 0:02:39.2]} 15... Nf4
{[%clk 0:02:42.6]} 16. Ng3 {[%clk 0:02:35.6]} 16... a5 {[%clk 0:02:29.1]} 17. c4
{[%clk 0:02:35.3]} 17... Na6 {[%clk 0:02:22.3]} 18. a3 {[%clk 0:02:27.2]} 18...
Nc5 {[%clk 0:02:18.1]} 19. Bc2 {[%clk 0:02:21.8]} 19... Qc8 {[%clk 0:02:12.5]}
20. Re3 {[%clk 0:01:57.5]} 20... Bh6 {[%clk 0:01:50.8]} 21. Rc3 {[%clk
0:01:53.8]} 21... a4 {[%clk 0:01:19.4]} 22. b4 {[%clk 0:01:28.3]} 22... axb3
{[%clk 0:01:17.9]} 23. Bxb3 {[%clk 0:01:28.7]} 23... Nxb3 {[%clk 0:00:59.3]} 24.
Rxb3 {[%clk 0:01:28.6]} 24... Ba4 {[%clk 0:00:58.7]} 25. Rab1 {[%clk 0:01:23.8]}
25... Re8 {[%clk 0:00:53.9]} 26. Ne4 {[%clk 0:01:23.2]} 26... Qf5 {[%clk
0:00:52.7]} 27. Qd3 {[%clk 0:01:15.9]} 27... Nxd3 {[%clk 0:00:52]} 0-1

[Event "*** Titled Tuesday Blitz"]
[Site "Chess.com"]
[Date "2021.04.06"]
[Round "2"]
[White "xurramid77"]
[Black "sergivila"]
[Result "1-0"]
[WhiteElo "2620"]
[BlackElo "2325"]
[TimeControl "180+1"]
[EndTime "10:16:18 PDT"]
[Termination "xurramid77 won by resignation"]

1. e4 {[%clk 0:03:00.9]} 1... c5 {[%clk 0:02:59.6]} 2. c3 {[%clk 0:03:01]} 2...
d5 {[%clk 0:02:57.7]} 3. exd5 {[%clk 0:03:01.4]} 3... Qxd5 {[%clk 0:02:58.6]} 4.
d4 {[%clk 0:03:01.8]} 4... Nf6 {[%clk 0:02:58.6]} 5. Nf3 {[%clk 0:03:02.1]} 5...
e6 {[%clk 0:02:59]} 6. Bd3 {[%clk 0:03:01.9]} 6... Be7 {[%clk 0:02:58.9]} 7. O-O
{[%clk 0:03:02]} 7... O-O {[%clk 0:02:59.1]} 8. dxc5 {[%clk 0:03:01.7]} 8...
Qxc5 {[%clk 0:02:55.3]} 9. Qe2 {[%clk 0:03:01.5]} 9... b6 {[%clk 0:02:49.4]} 10.
Nbd2 {[%clk 0:03:01.4]} 10... Bb7 {[%clk 0:02:48.3]} 11. h3 {[%clk 0:03:00.9]}
11... Qc7 {[%clk 0:02:46.3]} 12. Re1 {[%clk 0:03:00.1]} 12... Nbd7 {[%clk
0:02:45.9]} 13. Bc2 {[%clk 0:02:52.7]} 13... Rad8 {[%clk 0:02:40.3]} 14. Nf1
{[%clk 0:02:51]} 14... Nc5 {[%clk 0:02:34]} 15. Ng3 {[%clk 0:02:48.9]} 15...
Rfe8 {[%clk 0:02:23.4]} 16. b3 {[%clk 0:02:46.9]} 16... Bd6 {[%clk 0:02:05.6]}
17. Nf1 {[%clk 0:02:46.8]} 17... e5 {[%clk 0:02:03.8]} 18. Bg5 {[%clk
0:02:43.2]} 18... Qe7 {[%clk 0:01:37.4]} 19. Ne3 {[%clk 0:02:33.7]} 19... Qe6
{[%clk 0:01:31.5]} 20. Bf5 {[%clk 0:02:29]} 20... Qe7 {[%clk 0:01:28.9]} 21. Ng4
{[%clk 0:02:25.9]} 21... e4 {[%clk 0:01:21]} 22. Nd4 {[%clk 0:02:23.4]} 22...
Be5 {[%clk 0:01:14]} 23. Rad1 {[%clk 0:02:09.1]} 23... g6 {[%clk 0:01:06.3]} 24.
f4 {[%clk 0:02:00.2]} 24... exf3 {[%clk 0:01:01.8]} 25. Qxe5 {[%clk 0:02:00]}
25... Qxe5 {[%clk 0:00:59.2]} 26. Nxe5 {[%clk 0:01:53.7]} 1-0

[Event "*** Titled Tuesday Blitz"]
[Site "Chess.com"]
[Date "2021.04.06"]
[Round "2"]
[White "Vamostodorecto"]
[Black "Andrakhanova"]
[Result "1-0"]
[WhiteElo "2453"]
[BlackElo "2231"]
[TimeControl "180+1"]
[EndTime "10:16:20 PDT"]
[Termination "Vamostodorecto won by resignation"]

1. d4 {[%clk 0:03:00.9]} 1... d5 {[%clk 0:02:59.7]} 2. c4 {[%clk 0:03:01]} 2...
e6 {[%clk 0:02:59.6]} 3. Nc3 {[%clk 0:03:00]} 3... c6 {[%clk 0:02:59.7]} 4. e4
{[%clk 0:02:58.9]} 4... dxe4 {[%clk 0:02:59.3]} 5. Nxe4 {[%clk 0:02:59.8]} 5...
Bb4+ {[%clk 0:02:57.8]} 6. Bd2 {[%clk 0:02:59.7]} 6... Qxd4 {[%clk 0:02:53.5]}
7. Bxb4 {[%clk 0:02:59.2]} 7... Qxe4+ {[%clk 0:02:52.6]} 8. Be2 {[%clk
0:02:57.4]} 8... Ne7 {[%clk 0:02:52.5]} 9. Nf3 {[%clk 0:02:52.2]} 9... Nd7
{[%clk 0:02:50.6]} 10. O-O {[%clk 0:02:49.4]} 10... c5 {[%clk 0:02:49.9]} 11.
Bc3 {[%clk 0:02:47.9]} 11... O-O {[%clk 0:02:49.7]} 12. Bd3 {[%clk 0:02:47.4]}
12... Qg4 {[%clk 0:02:49.5]} 13. h3 {[%clk 0:02:36]} 13... Qh5 {[%clk
0:02:48.7]} 14. Kh2 {[%clk 0:02:07.8]} 14... f5 {[%clk 0:02:33.3]} 15. Qe2
{[%clk 0:01:52.6]} 15... Nf6 {[%clk 0:02:31.6]} 16. Kg1 {[%clk 0:01:35.1]} 16...
Ng6 {[%clk 0:02:23.9]} 17. Rfe1 {[%clk 0:01:30.2]} 17... Nf4 {[%clk 0:02:21.7]}
18. Qd1 {[%clk 0:01:24.9]} 18... Nxd3 {[%clk 0:02:11.4]} 19. Qxd3 {[%clk
0:01:24.2]} 19... Ne4 {[%clk 0:02:10]} 20. Be5 {[%clk 0:01:10]} 20... b6 {[%clk
0:01:56.7]} 21. Rxe4 {[%clk 0:01:06]} 21... fxe4 {[%clk 0:01:54.7]} 22. Qxe4
{[%clk 0:01:06.9]} 22... Bd7 {[%clk 0:01:44.7]} 23. Rd1 {[%clk 0:01:04.7]} 23...
Qf5 {[%clk 0:01:01.8]} 24. Qxf5 {[%clk 0:01:01.6]} 1-0

[Event "*** Titled Tuesday Blitz"]
[Site "Chess.com"]
[Date "2021.04.06"]
[Round "2"]
[White "PushingpawnsNYC"]
[Black "Cptn2"]
[Result "0-1"]
[WhiteElo "2282"]
[BlackElo "2515"]
[TimeControl "180+1"]
[EndTime "10:16:28 PDT"]
[Termination "Cptn2 won by resignation"]

1. e4 {[%clk 0:03:00.2]} 1... c5 {[%clk 0:02:59.9]} 2. Nc3 {[%clk 0:02:59.3]}
2... g6 {[%clk 0:03:00]} 3. Bc4 {[%clk 0:02:58.3]} 3... Bg7 {[%clk 0:03:00.4]}
4. Qf3 {[%clk 0:02:57.9]} 4... e6 {[%clk 0:03:00.5]} 5. Nb5 {[%clk 0:02:57.8]}
5... d6 {[%clk 0:02:52.6]} 6. Qg3 {[%clk 0:02:55.1]} 6... Bf8 {[%clk 0:02:49.9]}
7. f4 {[%clk 0:02:42.9]} 7... a6 {[%clk 0:02:49.7]} 8. Nc3 {[%clk 0:02:42.7]}
8... Nc6 {[%clk 0:02:50]} 9. Nf3 {[%clk 0:02:33.4]} 9... Bg7 {[%clk 0:02:49.9]}
10. a3 {[%clk 0:02:32.7]} 10... Nge7 {[%clk 0:02:49]} 11. O-O {[%clk 0:02:26.9]}
11... O-O {[%clk 0:02:47.4]} 12. d3 {[%clk 0:02:26.1]} 12... d5 {[%clk
0:02:46.6]} 13. Ba2 {[%clk 0:02:21.9]} 13... f5 {[%clk 0:02:46]} 14. Qf2 {[%clk
0:02:03.2]} 14... Nd4 {[%clk 0:02:41.4]} 15. Be3 {[%clk 0:01:58.3]} 15... Nxf3+
{[%clk 0:02:39.7]} 16. Qxf3 {[%clk 0:01:43.7]} 16... d4 {[%clk 0:02:40.6]} 17.
Bd2 {[%clk 0:01:41.8]} 17... dxc3 {[%clk 0:02:39.3]} 18. bxc3 {[%clk 0:01:42.7]}
18... Kh8 {[%clk 0:02:36.5]} 19. e5 {[%clk 0:01:30.3]} 19... Bd7 {[%clk
0:02:32.6]} 20. Qxb7 {[%clk 0:01:29.2]} 20... Bc6 {[%clk 0:02:31.9]} 21. Qb1
{[%clk 0:01:27.9]} 21... Bd5 {[%clk 0:02:31.4]} 22. Qe1 {[%clk 0:01:21.2]} 22...
Rb8 {[%clk 0:02:30.8]} 23. c4 {[%clk 0:01:15]} 23... Ba8 {[%clk 0:02:28.4]} 24.
Rb1 {[%clk 0:01:14.7]} 24... Nc6 {[%clk 0:02:28.5]} 25. Bb3 {[%clk 0:01:11.4]}
25... Nd4 {[%clk 0:02:22.1]} 26. Ba5 {[%clk 0:01:09.7]} 26... Qd7 {[%clk
0:02:19.8]} 27. Rf2 {[%clk 0:01:09.3]} 27... Nxb3 {[%clk 0:02:18.5]} 28. Rxb3
{[%clk 0:01:08.7]} 28... Rxb3 {[%clk 0:02:18.2]} 29. cxb3 {[%clk 0:01:08.2]}
29... Qxd3 {[%clk 0:02:18.9]} 30. b4 {[%clk 0:01:02.8]} 30... Qxc4 {[%clk
0:02:17.8]} 31. bxc5 {[%clk 0:01:00.6]} 31... Rc8 {[%clk 0:02:16.9]} 32. Bb6
{[%clk 0:00:55.1]} 32... Bf8 {[%clk 0:02:15.6]} 33. Rd2 {[%clk 0:00:45.3]} 33...
Bxc5+ {[%clk 0:02:13.6]} 34. Bxc5 {[%clk 0:00:45.8]} 34... Qxc5+ {[%clk
0:02:14.5]} 35. Kh1 {[%clk 0:00:45.6]} 35... Bd5 {[%clk 0:02:13.9]} 36. h3
{[%clk 0:00:44.7]} 36... Qc1 {[%clk 0:02:12.2]} 37. Rd1 {[%clk 0:00:26.5]} 37...
Qxf4 {[%clk 0:02:11.7]} 0-1

[Event "*** Titled Tuesday Blitz"]
[Site "Chess.com"]
[Date "2021.04.06"]
[Round "2"]
[White "NateSolon"]
[Black "kamilianin235"]
[Result "1-0"]
[WhiteElo "2606"]
[BlackElo "2250"]
[TimeControl "180+1"]
[EndTime "10:16:29 PDT"]
[Termination "NateSolon won by resignation"]

1. d4 {[%clk 0:03:00.9]} 1... d5 {[%clk 0:02:59.7]} 2. c4 {[%clk 0:02:59.6]}
2... dxc4 {[%clk 0:02:52.2]} 3. Nf3 {[%clk 0:02:59.3]} 3... Nf6 {[%clk
0:02:47.1]} 4. e3 {[%clk 0:02:59.4]} 4... e6 {[%clk 0:02:43.2]} 5. Bxc4 {[%clk
0:02:59.4]} 5... c5 {[%clk 0:02:34.7]} 6. O-O {[%clk 0:02:59.3]} 6... a6 {[%clk
0:02:31.1]} 7. Be2 {[%clk 0:02:59]} 7... b5 {[%clk 0:02:26.2]} 8. a4 {[%clk
0:02:54.8]} 8... b4 {[%clk 0:02:20.5]} 9. Nbd2 {[%clk 0:02:48.2]} 9... Bb7
{[%clk 0:02:19.3]} 10. Nc4 {[%clk 0:02:38.7]} 10... Nbd7 {[%clk 0:02:09.2]} 11.
a5 {[%clk 0:02:36]} 11... Rc8 {[%clk 0:02:07.4]} 12. b3 {[%clk 0:02:25]} 12...
Qc7 {[%clk 0:02:01.1]} 13. Bb2 {[%clk 0:02:23.7]} 13... Be7 {[%clk 0:01:55.5]}
14. Rc1 {[%clk 0:02:22]} 14... Qb8 {[%clk 0:01:53.6]} 15. Nfe5 {[%clk 0:02:18]}
15... O-O {[%clk 0:01:50.3]} 16. Bf3 {[%clk 0:02:16.2]} 16... Bxf3 {[%clk
0:01:46]} 17. Qxf3 {[%clk 0:02:17.1]} 17... Nxe5 {[%clk 0:01:44.6]} 18. Nxe5
{[%clk 0:01:57.4]} 18... Nd5 {[%clk 0:01:37.7]} 19. Nd7 {[%clk 0:01:51]} 19...
Qc7 {[%clk 0:01:28.9]} 20. Nxf8 {[%clk 0:01:50.5]} 20... Bxf8 {[%clk 0:01:29.7]}
21. dxc5 {[%clk 0:01:45.7]} 21... Bxc5 {[%clk 0:01:24.3]} 22. Qg3 {[%clk
0:01:35.4]} 22... Qxg3 {[%clk 0:01:18]} 23. hxg3 {[%clk 0:01:36.3]} 23... Ne7
{[%clk 0:01:16.5]} 24. Rc4 {[%clk 0:01:33.6]} 24... Bd6 {[%clk 0:01:13]} 25.
Rfc1 {[%clk 0:01:32.9]} 25... Rxc4 {[%clk 0:01:11.3]} 26. Rxc4 {[%clk
0:01:33.8]} 26... f6 {[%clk 0:01:10.3]} 27. Bd4 {[%clk 0:01:29.8]} 27... Kf7
{[%clk 0:01:07.8]} 28. Bc5 {[%clk 0:01:29.2]} 28... Bxc5 {[%clk 0:01:07.6]} 29.
Rxc5 {[%clk 0:01:30.1]} 29... h6 {[%clk 0:01:02.5]} 30. Rc7 {[%clk 0:01:29.2]}
30... Kf8 {[%clk 0:00:58.3]} 31. Ra7 {[%clk 0:01:28.2]} 31... Nd5 {[%clk
0:00:53.3]} 32. Rxa6 {[%clk 0:01:26.9]} 32... Nc3 {[%clk 0:00:51.1]} 33. Rxe6
{[%clk 0:01:22.9]} 1-0

[Event "*** Titled Tuesday Blitz"]
[Site "Chess.com"]
[Date "2021.04.06"]
[Round "2"]
[White "TST2014"]
[Black "PavelChernomordik"]
[Result "1-0"]
[WhiteElo "2679"]
[BlackElo "2335"]
[TimeControl "180+1"]
[EndTime "10:16:30 PDT"]
[Termination "TST2014 won by resignation"]

1. d4 {[%clk 0:03:00.9]} 1... g6 {[%clk 0:03:00.9]} 2. c4 {[%clk 0:02:59.8]}
2... Bg7 {[%clk 0:03:01.1]} 3. Nf3 {[%clk 0:02:57]} 3... d6 {[%clk 0:03:00.9]}
4. Nc3 {[%clk 0:02:56.5]} 4... Nc6 {[%clk 0:03:00.2]} 5. e3 {[%clk 0:02:49.1]}
5... e5 {[%clk 0:02:59.8]} 6. Be2 {[%clk 0:02:37.5]} 6... Nge7 {[%clk
0:02:53.2]} 7. d5 {[%clk 0:02:35.8]} 7... Nb8 {[%clk 0:02:52.1]} 8. e4 {[%clk
0:02:34.1]} 8... h6 {[%clk 0:02:50.7]} 9. h4 {[%clk 0:02:25.5]} 9... f5 {[%clk
0:02:42.6]} 10. h5 {[%clk 0:02:24.7]} 10... g5 {[%clk 0:02:39.6]} 11. exf5
{[%clk 0:02:23.3]} 11... Bxf5 {[%clk 0:02:35.8]} 12. Nd2 {[%clk 0:02:19.1]}
12... O-O {[%clk 0:02:33.5]} 13. Nde4 {[%clk 0:02:18.7]} 13... Nd7 {[%clk
0:02:33]} 14. Be3 {[%clk 0:02:10]} 14... Nf6 {[%clk 0:02:25.9]} 15. Ng3 {[%clk
0:02:05.1]} 15... Bh7 {[%clk 0:02:21.9]} 16. Bd3 {[%clk 0:02:05.1]} 16... Bxd3
{[%clk 0:02:03.5]} 17. Qxd3 {[%clk 0:02:03.6]} 17... Ng4 {[%clk 0:02:03.6]} 18.
O-O-O {[%clk 0:01:51.2]} 18... Nxf2 {[%clk 0:01:56.4]} 19. Bxf2 {[%clk
0:01:47.1]} 19... Rxf2 {[%clk 0:01:55.5]} 20. Nce4 {[%clk 0:01:46.5]} 20... Rf4
{[%clk 0:01:53.4]} 21. Ne2 {[%clk 0:01:46.5]} 21... Rf7 {[%clk 0:01:47.7]} 22.
Rdf1 {[%clk 0:01:46]} 22... Nf5 {[%clk 0:01:37.1]} 23. g4 {[%clk 0:01:42.5]}
23... Nd4 {[%clk 0:01:34.3]} 24. Nxd4 {[%clk 0:01:41.7]} 24... exd4 {[%clk
0:01:33.8]} 25. Rxf7 {[%clk 0:01:41.2]} 25... Kxf7 {[%clk 0:01:33.5]} 26. Ng3
{[%clk 0:01:37.3]} 26... Kg8 {[%clk 0:01:27.5]} 27. Re1 {[%clk 0:01:29]} 27...
Qf6 {[%clk 0:01:22.5]} 28. Nf5 {[%clk 0:01:24]} 28... Rf8 {[%clk 0:01:15.2]} 29.
Re6 {[%clk 0:01:23.3]} 29... Qf7 {[%clk 0:01:10.8]} 30. Rg6 {[%clk 0:01:18.5]}
30... c5 {[%clk 0:00:55.6]} 31. Nxh6+ {[%clk 0:01:17.6]} 1-0